bitfinex/quotes_ETHUSD_20250814
["timestamp","ask_amount","ask_price","bid_price","bid_amount"]
[1755212054100,2.20569822,4533.8,4533.5,3.406]
[1755212054597,2.2057059,4533.7,4533.5,3.406]
[1755212054800,2.2057059,4533.7,4533.5,4.1142]
[1755212055162,2.2057526,4533.6,4533.5,4.1142]
[1755212055684,2.20565941,4533.8,4533.5,4.1142]
[1755212055863,2.20564271,4533.9,4533.6,1.1549]
[1755212056054,2.20564271,4533.9,4533.7,1.1549]
[1755212056489,0.1104,4534.0,4533.8,1.1549]
[1755212056858,2.315958,4534.0,4533.9,1.1549]
[1755212058559,2.315958,4534.0,4533.9,4.5599]
[1755212058899,0.1104,4534.0,4533.9,4.5599]
[1755212059054,0.002,4534.1,4533.9,4.6703]
[1755212059255,0.002,4534.1,4534.0,1.1549]
[1755212062013,0.002,4534.1,4534.0,5.40089999]
[1755212063910,0.002,4534.1,4534.0,1.1549]
[1755212065092,2.20750936,4534.1,4534.0,1.1549]
[1755212066219,2.20750936,4534.1,4534.0,0.7082]
[1755212066429,2.205558,4534.0,4533.9,3.5154]
[1755212067129,2.205558,4534.0,4533.9,4.6309]
[1755212068514,0.002,4534.1,4533.9,4.6309]
[1755212068712,2.205558,4534.0,4533.9,0.1104]
[1755212068929,0.1104,4534.0,4533.9,3.403]
[1755212069093,2.315958,4534.0,4533.9,3.403]
[1755212069499,2.20566604,4533.8,4533.4,0.1104]
[1755212069699,2.20566604,4533.8,4533.6,0.655]
[1755212069946,0.002,4534.1,4533.7,1.1155]
[1755212070098,0.002,4534.1,4533.8,3.403]
[1755212070302,0.002,4534.1,4533.8,3.8635]
[1755212070523,0.002,4534.1,4533.9,1.1155]
[1755212070913,2.20568408,4533.8,4533.4,0.7654]
[1755212071118,2.20570804,4533.7,4533.5,3.403]
[1755212071404,2.20570417,4533.7,4533.5,4.058]
[1755212071602,2.20572557,4533.7,4533.5,0.655]
[1755212071809,2.20572557,4533.7,4533.6,3.403]
[1755212072012,2.20755282,4534.1,4533.6,3.403]
[1755212072206,2.205558,4534.0,4533.7,1.1155]
[1755212072411,2.205558,4534.0,4533.8,0.655]
[1755212072610,2.205558,4534.0,4533.9,3.403]
[1755212074115,2.315958,4534.0,4533.9,3.403]
[1755212074322,2.63982131,4534.0,4533.9,3.403]
[1755212075341,0.1104,4534.0,4533.9,4.058]
[1755212075522,2.315958,4534.0,4533.9,4.5185]
[1755212075838,0.002,4534.1,4533.9,4.5185]
[1755212076040,2.20750936,4534.1,4534.0,1.1155]
[1755212076240,0.002,4534.1,4534.0,1.1155]
[1755212078150,0.002,4534.1,4534.0,1.2259]
[1755212079451,0.002,4534.1,4534.0,5.47189999]
[1755212080855,0.002,4534.1,4534.0,8.78551256]
[1755212081057,0.002,4534.1,4534.0,9.33551256]
[1755212084255,0.002,4534.1,4534.0,8.78551256]
[1755212084459,0.002,4534.1,4534.0,11.07845799]
[1755212090336,0.002,4534.1,4534.0,5.01139999]
[1755212090535,0.002,4534.1,4534.0,9.96195799]
[1755212090855,0.002,4534.1,4534.0,8.87189999]
[1755212091360,0.002,4534.1,4534.0,8.41139999]
[1755212091729,0.002,4534.1,4534.0,10.61695799]
[1755212091930,0.002,4534.1,4534.0,8.41139999]
[1755212092355,0.002,4534.1,4534.0,8.88449999]
[1755212093057,0.002,4534.1,4534.0,8.41139999]
[1755212095632,0.002,4534.1,4534.0,8.88449999]
[1755212096156,0.002,4534.1,4534.0,8.41139999]
[1755212096531,0.002,4534.1,4534.0,4.35639999]
[1755212096750,2.20750936,4534.1,4534.0,4.24599999]
[1755212096951,2.89237267,4534.1,4534.0,7.64499999]
[1755212097563,2.89237267,4534.1,4534.0,3.399]
[1755212099072,0.32586331,4534.1,4534.0,3.399]
[1755212099292,0.002,4534.1,4534.0,4.09]
[1755212099457,0.002,4534.1,4534.0,4.2004]
[1755212099786,0.002,4534.1,4534.0,3.5094]
[1755212101172,0.002,4534.1,4534.0,3.399]
[1755212101755,2.20750936,4534.1,4534.0,3.399]
[1755212102490,2.20750936,4534.1,4533.7,4.35639999]
[1755212102491,0.002,4534.1,4533.7,4.35639999]
[1755212102689,0.002,4534.1,4533.8,3.399]
[1755212102690,2.56852718,4534.1,4533.8,3.399]
[1755212102868,2.20560665,4533.9,4533.8,3.399]
[1755212103190,0.002,4534.1,4533.8,3.399]
[1755212103355,0.002,4534.1,4533.9,4.24599999]
[1755212103554,0.002,4534.1,4534.0,3.399]
[1755212104184,0.002,4534.1,4534.0,4.09]
[1755212104889,0.002,4534.1,4534.0,4.5631]
[1755212105278,0.002,4534.1,4534.0,4.6735]
[1755212105859,0.002,4534.1,4534.0,6.879058]
[1755212106170,0.002,4534.1,4534.0,4.6735]
[1755212106563,0.002,4534.1,4534.0,6.879058]
[1755212107209,0.002,4534.1,4534.0,4.6735]
[1755212108161,0.002,4534.1,4534.0,4.2004]
[1755212108374,0.002,4534.1,4534.0,3.5094]
[1755212109265,0.002,4534.1,4534.0,8.44639999]
[1755212109467,0.002,4534.1,4534.0,8.91949999]
[1755212110066,0.002,4534.1,4534.0,8.44639999]
[1755212111199,0.002,4534.1,4534.0,8.91949999]
[1755212112872,0.002,4534.1,4534.0,7.75539999]
[1755212113069,0.002,4534.1,4534.0,3.397]
[1755212113307,2.31790936,4534.1,4534.0,3.397]
[1755212115889,2.20558204,4534.0,4533.6,0.001]
[1755212116088,0.1124,4534.1,4533.7,3.397]
[1755212116488,2.20564874,4533.9,4533.6,0.001]
[1755212116692,2.20560665,4533.9,4533.7,3.397]
[1755212116902,2.2056553,4533.8,4533.7,3.397]
[1755212117293,2.205558,4534.0,4533.7,3.397]
[1755212117488,2.3179127,4534.1,4533.6,0.001]
[1755212117694,2.3179127,4534.1,4533.8,4.5611]
[1755212118003,2.20556867,4534.0,4533.6,0.001]
[1755212118305,2.20556867,4534.0,4533.7,7.64299999]
[1755212118509,0.1124,4534.1,4533.7,7.64299999]
[1755212118673,2.205558,4534.0,4533.7,7.64299999]
[1755212119001,0.1124,4534.1,4533.7,7.64299999]
[1755212119002,2.31791976,4534.1,4533.7,7.64299999]
[1755212119206,0.1124,4534.1,4533.7,7.64299999]
[1755212119505,2.205558,4534.0,4533.7,7.64299999]
[1755212119693,2.31792357,4534.1,4533.7,7.64299999]
[1755212120001,2.31792357,4534.1,4533.8,1.1641]
[1755212120207,2.31792357,4534.1,4533.9,3.397]
[1755212120404,0.1124,4534.1,4533.9,4.088]
[1755212120610,0.1124,4534.1,4534.0,0.691]
[1755212120975,0.1124,4534.1,4534.0,1.1641]
[1755212121176,0.002,4534.1,4534.0,1.1641]
[1755212124218,0.002,4534.1,4534.0,5.41009999]
[1755212129793,0.002,4534.1,4534.0,7.61565799]
[1755212129996,0.002,4534.1,4534.0,5.41009999]
[1755212130807,0.002,4534.1,4534.0,7.61565799]
[1755212131205,0.002,4534.1,4534.0,5.41009999]
[1755212131920,0.002,4534.1,4534.0,7.64099999]
[1755212132604,2.20750936,4534.1,4534.0,7.64099999]
[1755212132805,2.20750936,4534.1,4534.0,4.24599999]
[1755212133007,2.20750936,4534.1,4534.0,7.64099999]
[1755212133482,2.20570395,4533.7,4533.6,0.1114]
[1755212133689,11.70982326,4533.7,4533.6,0.001]
[1755212133896,3.15295132,4533.7,4533.6,0.001]
[1755212134100,2.67710395,4533.7,4533.6,0.001]
[1755212134830,2.31610395,4533.7,4533.6,0.001]
[1755212135000,2.31610395,4533.7,4533.6,3.396]
[1755212135899,3.00366811,4533.7,4533.6,0.001]
[1755212138134,2.31610395,4533.7,4533.6,0.001]
[1755212138894,2.64266811,4533.7,4533.6,0.001]
[1755212139226,2.31610395,4533.7,4533.6,0.001]
[1755212139630,0.43696416,4533.7,4533.6,0.001]
[1755212139830,0.1104,4533.8,4533.6,4.5072]
[1755212140016,0.1104,4533.8,4533.7,1.1112]
[1755212140812,0.002,4534.1,4533.7,1.2216]
[1755212141012,0.002,4534.1,4533.7,0.1104]
[1755212141216,0.002,4534.1,4533.8,1.1112]
[1755212141733,0.002,4534.1,4533.9,1.1112]
[1755212141929,0.002,4534.1,4534.0,3.395]
[1755212142130,0.002,4534.1,4534.0,4.5062]
[1755212142333,2.20750936,4534.1,4534.0,4.5062]
[1755212142510,2.20754266,4534.1,4534.0,3.395]
[1755212142709,2.31794266,4534.1,4534.0,3.395]
[1755212143034,0.1124,4534.1,4534.0,1.1112]
[1755212143214,0.002,4534.1,4534.0,4.6156]
[1755212145735,2.20750936,4534.1,4534.0,3.394]
[1755212146434,0.002,4534.1,4534.0,3.394]
[1755212146745,0.002,4534.1,4534.0,4.5052]
[1755212147106,0.002,4534.1,4534.0,4.6156]
[1755212147432,0.002,4534.1,4534.0,9.32315999]
[1755212149221,0.002,4534.1,4534.0,8.86159999]
[1755212149805,0.002,4534.1,4534.0,5.46759999]
[1755212150013,0.002,4534.1,4534.0,8.39559999]
[1755212150736,0.002,4534.1,4534.0,8.86159999]
[1755212153236,0.002,4534.1,4534.0,8.86059999]
[1755212153540,0.002,4534.1,4534.0,8.39459999]
[1755212153835,0.002,4534.1,4534.0,8.82329999]
[1755212154342,0.002,4534.1,4534.0,7.63899999]
[1755212154507,0.002,4534.1,4534.0,8.69339999]
[1755212157541,0.002,4534.1,4534.0,7.63899999]
[1755212157754,2.20750936,4534.1,4534.0,7.63899999]
[1755212157911,0.1124,4534.1,4533.6,0.001]
[1755212158247,2.2056553,4533.8,4533.7,3.393]
[1755212158546,2.3046553,4533.8,4533.7,3.393]
[1755212158747,2.4150553,4533.8,4533.7,3.393]
[1755212158932,2.20570395,4533.7,4533.6,0.001]
[1755212159111,2.30470395,4533.7,4533.6,0.001]
[1755212160050,2.20570395,4533.7,4533.6,0.001]
[1755212161465,2.56670395,4533.7,4533.6,0.001]
[1755212161660,2.87243478,4533.7,4533.6,0.001]
[1755212162013,3.34766572,4533.7,4533.6,0.001]
[1755212162211,3.04193489,4533.7,4533.6,0.001]
[1755212162613,2.68093489,4533.7,4533.6,0.001]
[1755212163216,2.56670395,4533.7,4533.6,0.001]
[1755212164349,2.20570395,4533.7,4533.6,0.001]
[1755212164945,2.56670395,4533.7,4533.6,0.001]
[1755212165317,2.20570395,4533.7,4533.6,0.001]
[1755212167713,2.20570395,4533.7,4533.6,0.6267]
[1755212168041,2.20570395,4533.7,4533.6,0.001]
[1755212169555,2.56410395,4533.7,4533.6,0.001]
[1755212170620,2.86983478,4533.7,4533.6,0.001]
[1755212171649,2.51143478,4533.7,4533.6,0.001]
[1755212172037,2.87243478,4533.7,4533.6,0.001]
[1755212172564,35.87243478,4533.7,4533.6,0.001]
[1755212172729,35.87243478,4533.7,4533.2,0.001]
[1755212172730,2.20589857,4533.3,4533.2,0.001]
[1755212172929,18.19158455,4533.3,4533.2,0.001]
[1755212173129,19.02759952,4533.3,4533.2,0.001]
[1755212173771,19.02759952,4533.3,4532.6,0.001]
[1755212173772,0.55,4533.1,4532.6,0.001]
[1755212174061,12.77115695,4532.7,4532.6,0.001]
[1755212174282,2.20628792,4532.5,4532.2,0.001]
[1755212174485,39.60766319,4532.4,4532.3,1e-08]
[1755212174686,39.60766319,4532.4,4532.2,0.001]
[1755212174687,5.75638527,4532.3,4532.2,1e-08]
[1755212174991,2.20701831,4531.0,4530.9,0.001]
[1755212175170,48.08230429,4531.0,4530.9,0.001]
[1755212175374,49.02871926,4531.0,4530.9,0.001]
[1755212175560,39.65515295,4531.0,4530.9,0.001]
[1755212175760,38.87440715,4531.0,4530.9,0.001]
[1755212177798,2.48240715,4531.0,4530.9,1.0554]
[1755212178099,0.27538884,4531.0,4530.9,1.0554]
[1755212178282,2.48240715,4531.0,4530.9,1.0554]
[1755212178489,0.27538884,4531.0,4530.9,1.0554]
[1755212179652,0.1104,4531.0,4530.9,1.0554]
[1755212179857,0.1104,4531.2,4530.9,1.0554]
[1755212180058,0.1104,4531.2,4531.0,0.4287]
[1755212180286,0.1104,4531.2,4531.0,1.0544]
[1755212180792,0.1104,4531.2,4531.1,1.0544]
[1755212182691,0.25422509,4531.6,4531.1,1.0544]
[1755212182868,0.25422509,4531.6,4531.2,1.1191692]
[1755212183073,0.25422509,4531.6,4531.5,2.20677479]
[1755212183388,0.25422509,4531.6,4531.5,3.41427479]
[1755212185902,0.25422509,4531.6,4531.5,6.80627479]
[1755212186103,0.25422509,4531.6,4531.5,3.41427479]
[1755212186402,0.25422509,4531.6,4531.5,6.80627479]
[1755212186701,0.25422509,4531.6,4531.5,7.71988102]
[1755212187817,0.25422509,4531.6,4531.5,8.26988102]
[1755212195119,0.25422509,4531.6,4531.5,12.51588101]
[1755212195692,0.25422509,4531.6,4531.5,7.74739999]
[1755212195878,0.25422509,4531.6,4531.5,4.24599999]
[1755212196675,0.25422509,4531.6,4531.3,0.1104]
[1755212197276,0.1104,4531.9,4531.4,0.6423]
[1755212197510,0.002,4532.1,4532.0,2.75653133]
[1755212197710,0.002,4532.1,4532.0,6.14753133]
[1755212198029,0.002,4532.1,4532.0,7.24463133]
[1755212199600,0.002,4532.1,4532.0,3.85363133]
[1755212199805,0.002,4532.1,4532.0,7.24463133]
[1755212200005,0.002,4532.1,4532.0,8.20079476]
[1755212200620,0.002,4532.1,4532.0,0.95616343]
[1755212200782,0.002,4532.1,4532.0,3.391]
[1755212201215,0.002,4532.1,4532.0,6.71669664]
[1755212201417,0.002,4532.1,4532.0,6.69463133]
[1755212201733,0.002,4532.1,4532.0,7.24463133]
[1755212202034,0.002,4533.0,4532.5,2.20628792]
[1755212202191,0.002,4533.0,4532.5,5.59728792]
[1755212202393,0.002,4533.0,4532.5,11.05478792]
[1755212203512,0.002,4533.0,4532.5,11.49438792]
[1755212203686,0.002,4533.0,4532.5,11.60478792]
[1755212203881,0.002,4533.0,4532.5,13.70090267]
[1755212207092,0.002,4533.0,4532.5,13.69990267]
[1755212208992,0.002,4533.0,4532.5,10.30990267]
[1755212209196,0.002,4533.0,4532.5,13.69990267]
[1755212218732,0.002,4533.0,4532.9,7.00409322]
[1755212218925,0.002,4533.0,4532.9,11.31411854]
[1755212219124,0.002,4533.0,4532.9,11.42451854]
[1755212221299,0.002,4533.0,4532.9,10.50349322]
[1755212222150,0.002,4533.0,4532.9,9.95349322]
[1755212223921,0.002,4533.0,4532.9,11.59239322]
[1755212226135,0.363,4533.0,4532.9,9.95349322]
[1755212226335,0.002,4533.0,4532.9,9.95349322]
[1755212227304,0.002,4533.0,4532.9,7.7474]
[1755212228317,0.002,4533.0,4532.9,9.95349322]
[1755212230336,0.101,4533.0,4531.6,5.297]
[1755212230644,0.1104,4532.6,4532.2,3.389]
[1755212230842,2.20633197,4532.5,4532.2,3.389]
[1755212231010,2.3166399,4532.6,4532.2,3.389]
[1755212231430,2.31665237,4532.6,4532.2,3.389]
[1755212231646,2.20629494,4532.5,4532.2,3.389]
[1755212232144,2.20629494,4532.5,4532.0,0.1104]
[1755212232342,0.099,4532.4,4532.2,3.389]
[1755212232545,0.1104,4532.6,4532.2,3.389]
[1755212232752,0.099,4533.2,4532.2,3.389]
[1755212233066,0.1104,4533.3,4532.7,2.20618608]
[1755212233214,0.1104,4533.3,4532.8,5.595119]
[1755212233414,2.31815288,4533.6,4532.9,2.31649322]
[1755212234018,0.002,4533.6,4532.9,2.31649322]
[1755212234245,0.002,4533.6,4532.9,3.40539322]
[1755212234630,0.002,4533.6,4532.9,2.94419322]
[1755212235356,0.002,4533.6,4532.9,3.40539322]
[1755212235863,0.002,4533.6,4532.9,4.82971242]
[1755212237061,0.002,4533.6,4532.9,7.12981242]
[1755212237233,0.002,4533.6,4532.9,6.25549322]
[1755212238435,0.002,4533.6,4532.9,7.34439322]
[1755212243336,1e-08,4533.0,4532.9,10.34439322]
[1755212244248,1e-08,4533.0,4532.9,6.95539322]
[1755212244449,1e-08,4533.0,4532.9,11.26838609]
[1755212245167,1e-08,4533.0,4532.9,7.88038609]
[1755212245358,1e-08,4533.0,4532.9,11.26838609]
[1755212245554,1e-08,4533.0,4532.9,22.66638609]
[1755212246146,1e-08,4533.0,4532.9,11.26838609]
[1755212250979,1e-08,4533.0,4532.9,6.62848609]
[1755212251680,1e-08,4533.0,4532.9,7.17848609]
[1755212251867,0.002,4533.5,4533.4,2.75584991]
[1755212252047,0.002,4533.5,4533.4,6.74942665]
[1755212252253,0.002,4533.5,4533.4,7.77202665]
[1755212253971,0.002,4533.5,4533.4,10.77202665]
[1755212255783,0.002,4533.5,4533.4,7.38502665]
[1755212255986,0.002,4533.5,4533.4,10.77202665]
[1755212257689,0.002,4533.5,4533.4,9.74942665]
[1755212258004,0.002,4533.5,4533.4,10.77202665]
[1755212258158,0.002,4533.5,4533.4,10.66162665]
[1755212258357,0.002,4533.5,4533.4,7.38502665]
[1755212258592,0.002,4533.5,4533.4,10.33332665]
[1755212258781,0.002,4533.5,4533.4,10.77202665]
[1755212260688,0.002,4533.5,4533.4,6.74942665]
[1755212260881,0.002,4533.5,4533.4,7.33332665]
[1755212261257,0.002,4533.5,4533.4,7.77202665]
[1755212263294,0.002,4533.5,4533.4,5.70224991]
[1755212263663,0.002,4533.5,4533.4,6.25224991]
[1755212264481,0.002,4533.5,4533.4,6.83614991]
[1755212265388,0.002,4533.5,4533.4,6.25224991]
[1755212266868,0.002,4533.5,4533.4,2.86624991]
[1755212267068,0.002,4533.5,4533.4,5.70224991]
[1755212267305,0.002,4533.5,4533.4,6.25224991]
[1755212269722,0.002,4533.5,4533.4,2.86624991]
[1755212269898,0.002,4533.5,4533.4,6.25224991]
[1755212270072,0.002,4533.5,4533.4,7.26784265]
[1755212270399,0.002,4533.5,4533.4,7.85174265]
[1755212272678,0.002,4533.5,4533.4,8.28194265]
[1755212277204,0.002,4533.5,4533.4,11.28194265]
[1755212283512,0.002,4533.6,4533.5,5.75580125]
[1755212283707,0.002,4534.0,4533.9,2.75560665]
[1755212283936,0.002,4534.0,4533.9,18.31180403]
[1755212284110,0.002,4534.0,4533.9,18.42220403]
[1755212284439,0.002,4534.0,4533.9,19.45800403]
[1755212286640,0.002,4534.0,4533.9,19.02780403]
[1755212286841,0.002,4534.0,4533.9,21.15115179]
[1755212287506,0.002,4534.0,4533.9,20.54555179]
[1755212288128,0.002,4534.0,4533.9,20.49555179]
[1755212288519,0.002,4534.0,4533.9,21.10115179]
[1755212288731,0.002,4534.0,4533.9,21.53135179]
[1755212289629,0.002,4534.0,4533.9,11.32435441]
[1755212290923,0.002,4534.0,4533.9,21.10115179]
[1755212291128,1e-08,4534.0,4533.9,21.53135179]
[1755212297535,1e-08,4534.0,4533.9,21.53035179]
[1755212297758,0.002,4534.7,4534.2,2.75546072]
[1755212297964,0.002,4534.7,4534.2,11.36597936]
[1755212298167,0.002,4534.7,4534.2,12.49012476]
[1755212298387,0.361,4536.6,4535.3,2.7549258]
[1755212298697,0.361,4536.9,4535.3,18.42052318]
[1755212298987,0.361,4536.8,4536.4,2.20434328]
[1755212299171,0.361,4536.7,4536.6,2.20429322]
[1755212299380,0.361,4536.7,4536.6,5.58729322]
[1755212299744,0.361,4536.7,4536.6,5.69769322]
[1755212300040,0.361,4536.7,4536.6,3.4934]
[1755212300245,0.361,4536.7,4536.6,3.383]
[1755212300246,0.3978,4536.7,4536.6,3.383]
[1755212302745,2.60204537,4536.7,4536.6,3.383]
[1755212303257,0.0368,4537.0,4536.6,3.383]
[1755212303464,0.1104,4537.1,4536.6,3.383]
[1755212303465,0.3978,4536.7,4536.6,3.383]
[1755212304377,0.361,4536.7,4536.4,0.1104]
[1755212304588,2.20410898,4537.0,4536.6,3.383]
[1755212304750,2.20421646,4536.8,4536.6,3.383]
[1755212305094,0.3893,4536.7,4536.6,3.383]
[1755212305258,0.361,4536.7,4536.6,3.383]
[1755212305856,2.20409962,4537.0,4536.6,3.383]
[1755212306102,2.31433669,4537.4,4536.6,5.5872885]
[1755212306260,2.20395389,4537.3,4536.8,0.1104]
[1755212306460,2.56495389,4537.3,4536.9,3.383]
[1755212306659,0.361,4537.2,4536.9,3.383]
[1755212307085,0.361,4537.5,4537.0,0.1104]
[1755212307254,2.56486238,4537.5,4537.0,0.1104]
[1755212307455,0.1104,4537.7,4537.0,0.1104]
[1755212307786,2.20380818,4537.6,4537.0,0.1104]
[1755212307971,2.56480818,4537.6,4537.0,0.1104]
[1755212308558,0.361,4537.6,4537.0,0.1104]
[1755212309158,2.31416986,4537.7,4537.0,0.1104]
[1755212309553,0.1104,4537.7,4537.0,0.1104]
[1755212309902,2.20380818,4537.6,4537.0,0.1104]
[1755212310102,2.20386522,4537.5,4537.0,0.1104]
[1755212310302,0.1273,4537.4,4537.1,3.382]
[1755212310495,0.099,4537.3,4537.1,3.382]
[1755212310696,2.20390751,4537.4,4537.1,3.382]
[1755212310909,0.099,4537.2,4537.1,3.382]
[1755212311667,2.20390751,4537.4,4537.1,3.382]
[1755212311912,2.30290751,4537.4,4537.1,3.382]
[1755212312223,2.20581385,4537.6,4537.1,3.382]
[1755212312420,0.099,4537.3,4537.1,3.382]
[1755212312567,0.002,4537.6,4537.1,3.382]
[1755212312881,2.30290488,4537.5,4537.2,3.4924]
[1755212313064,0.099,4537.4,4537.2,3.4924]
[1755212313272,0.002,4537.6,4537.4,0.1104]
[1755212313477,2.20385674,4537.5,4537.4,0.1104]
[1755212313678,2.20385674,4537.5,4536.4,4.25]
[1755212313679,0.099,4537.5,4536.4,4.25]
[1755212313907,2.20431152,4536.6,4536.4,0.1104]
[1755212314111,2.20431152,4536.6,4536.5,3.382]
[1755212314329,2.20434255,4536.5,4536.4,0.1104]
[1755212314478,0.0283,4536.5,4536.2,0.1104]
[1755212314679,11.37540144,4536.8,4536.0,3.382]
[1755212314680,0.1104,4536.1,4536.0,3.382]
[1755212314907,2.20463414,4535.9,4535.8,3.382]
[1755212315409,2.3149471,4536.1,4535.8,3.382]
[1755212315614,0.47396235,4537.0,4535.8,3.382]
[1755212315924,2.20424537,4536.7,4536.0,0.1104]
[1755212316221,0.1104,4536.8,4536.0,0.1104]
[1755212316385,0.099,4536.7,4536.0,0.1104]
[1755212316581,2.20448484,4536.3,4536.0,0.1104]
[1755212316800,2.20439992,4536.4,4536.0,0.1104]
[1755212317015,0.1104,4536.8,4536.0,0.1104]
[1755212317197,2.20441476,4536.4,4536.0,0.1104]
[1755212317681,2.2044752,4536.3,4536.0,0.1104]
[1755212318313,2.20449043,4536.2,4536.0,0.1104]
[1755212318923,2.20443737,4536.4,4536.0,0.1104]
[1755212319120,0.1104,4536.8,4536.0,0.1104]
[1755212319423,2.20449062,4536.2,4536.0,0.1104]
[1755212320002,2.20449062,4536.2,4536.1,4.25]
[1755212322021,2.20445039,4536.3,4536.1,4.25]
[1755212322326,2.20445039,4536.3,4536.2,3.382]
[1755212324034,0.1104,4536.8,4536.0,0.1104]
[1755212324035,9.28159738,4536.8,4536.0,0.1104]
[1755212324333,2.20463414,4535.9,4535.8,0.1104]
[1755212324625,2.20463414,4535.9,4535.8,3.4914]
[1755212325205,2.20463414,4535.9,4535.8,3.381]
[1755212325510,2.20468274,4535.8,4535.7,4.25]
[1755212326140,2.20468274,4535.8,4535.7,7.631]
[1755212326354,2.20477996,4535.6,4535.5,0.1104]
[1755212326650,2.20477996,4535.6,4534.6,0.1104]
[1755212326651,2.20485795,4535.5,4534.6,0.1104]
[1755212326830,2.20526025,4534.7,4534.5,3.381]
[1755212327147,2.20526617,4534.6,4534.5,3.381]
[1755212327431,0.1104,4535.0,4534.5,4.431]
[1755212327740,2.20464525,4535.9,4534.9,2.75512028]
[1755212327924,2.20464525,4535.9,4535.5,0.1104]
[1755212328122,2.20464525,4535.9,4535.6,3.381]
[1755212328326,2.20464525,4535.9,4535.7,1.05]
[1755212328736,2.20456741,4536.1,4535.8,1.05]
[1755212329108,0.1104,4536.3,4535.8,1.05]
[1755212329339,2.20439594,4536.4,4535.9,1.1604]
[1755212329636,2.20445347,4536.3,4536.0,4.432]
[1755212330408,0.1104,4536.5,4536.0,3.382]
[1755212330604,2.20439293,4536.4,4536.1,1.05]
[1755212330836,0.1104,4536.5,4536.1,1.05]
[1755212330837,0.1104,4536.5,4536.2,0.6075]
[1755212331038,2.20434708,4536.5,4536.2,1.1604]
[1755212331244,2.20443974,4536.3,4535.5,2.20481014]
[1755212331406,2.20443974,4536.3,4534.9,0.551]
[1755212331407,2.20443974,4536.3,4536.0,0.1104]
[1755212331612,2.20443974,4536.3,4536.1,3.382]
[1755212332231,2.20440065,4536.4,4536.1,3.382]
[1755212332443,0.1104,4536.6,4536.1,3.382]
[1755212332444,2.20434907,4536.5,4536.1,3.382]
[1755212332611,0.1643746,4537.0,4536.2,1.0309]
[1755212332818,2.2042426,4536.8,4536.3,0.1104]
[1755212333049,2.20431325,4536.6,4536.3,0.1104]
[1755212333346,0.1104,4537.0,4536.4,0.5956]
[1755212333543,2.31450537,4537.0,4536.5,3.8173]
[1755212333845,0.1104,4537.0,4536.6,1.0309]
[1755212334043,2.31453532,4537.0,4536.7,1.0309]
[1755212334214,2.31453532,4537.0,4536.8,0.5956]
[1755212334613,2.31453532,4537.0,4536.7,0.4353]
[1755212334943,2.31453532,4537.0,4536.5,3.382]
[1755212335152,0.1104,4537.0,4536.6,1.0309]
[1755212335352,2.20393468,4537.4,4536.7,3.25716387]
[1755212335552,2.31433468,4537.4,4536.8,0.1104]
[1755212335710,2.31433468,4537.4,4536.9,3.8163]
[1755212336112,2.31433468,4537.4,4537.0,0.5956]
[1755212336349,2.31433468,4537.4,4537.0,1.0309]
[1755212336643,2.31433468,4537.4,4537.1,1.0309]
[1755212336845,2.20395965,4537.3,4537.1,1.0309]
[1755212337024,2.31431575,4537.4,4537.1,1.0309]
[1755212337226,2.20395402,4537.3,4537.1,1.0309]
[1755212337433,0.1104,4537.4,4536.8,0.1104]
[1755212337632,0.1104,4537.4,4536.5,0.5956]
[1755212337633,2.20409962,4537.0,4536.9,3.381]
[1755212338050,0.47647809,4537.6,4536.9,3.381]
[1755212338214,2.20385674,4537.5,4537.0,1.0309]
[1755212338414,2.20385674,4537.5,4537.1,1.0309]
[1755212338725,2.31621461,4537.6,4537.1,1.0309]
[1755212338925,2.31621461,4537.6,4537.2,1.0309]
[1755212339146,0.1124,4537.6,4537.3,3.381]
[1755212339345,0.1124,4537.6,4537.3,3.9766]
[1755212339650,0.1124,4537.6,4537.4,0.5956]
[1755212339847,0.1124,4537.6,4537.4,1.0309]
[1755212340052,0.002,4537.6,4537.4,1.0309]
[1755212341650,2.2058195,4537.6,4537.4,1.0309]
[1755212341845,0.002,4537.6,4537.3,3.381]
[1755212342143,0.002,4537.6,4537.3,3.8163]
[1755212342344,0.002,4537.6,4537.4,0.5956]
[1755212342648,0.002,4537.6,4537.1,0.1104]
[1755212342847,0.002,4537.6,4536.2,0.5956]
[1755212343015,0.1104,4537.5,4536.9,0.1104]
[1755212343222,0.1104,4537.5,4537.0,3.8163]
[1755212343439,0.1104,4537.5,4537.1,1.0309]
[1755212343658,0.002,4537.6,4537.2,0.1104]
[1755212343861,0.002,4537.6,4537.4,0.1104]
[1755212344059,0.002,4537.6,4537.5,3.381]
[1755212344386,0.002,4537.6,4537.5,6.61575674]
[1755212344680,0.002,4537.6,4537.5,4.4119]
[1755212345841,0.002,4537.6,4537.4,0.1104]
[1755212346046,0.002,4537.6,4537.5,3.381]
[1755212346643,0.002,4537.6,4537.5,3.9766]
[1755212346980,0.002,4537.6,4537.5,3.381]
[1755212347594,2.15571139,4537.8,4537.5,3.381]
[1755212348072,2.20369908,4537.9,4537.5,3.381]
[1755212348774,2.20371935,4537.8,4537.5,3.9766]
[1755212349283,2.20361392,4538.0,4537.5,3.381]
[1755212349582,2.20376106,4537.7,4537.5,3.381]
[1755212349975,2.20377314,4537.7,4537.5,3.381]
[1755212350178,2.20377314,4537.7,4537.5,3.38]
[1755212350345,2.20377044,4537.7,4537.5,3.38]
[1755212350673,2.20380818,4537.6,4537.5,3.38]